Workbook

Sheet Welcome
B3: Use this calculator to suggest sample sizes for case reviews and other events that require a sample
B5: Introduction
B6: Reviewing a sample of cases is a frequently used method in child welfare continuous quality improvement processes to understand the fidelity and quality of practice with children and families. This calculator provides guidance and options for informing decisions about case review sample sizes.
B7: Understanding Sampling
B8: If you need to learn more about a population, like a group of children or families that have something in common, but don't have the resources to interview, survey, or read case notes about every person in the population, you can select a sample from the population. If your sample is too small, however, you limit the degree to which you can say the results from your sample match what you would have obtained had you worked with the entire population. So how large does your sample need to be to have confidence that it reflects the experience of the entire population? The answer depends mostly on four factors: the size of the population, the variation in the population (e.g., how similar or different each person or case is), how much confidence you want to have, and how much error you are willing to accept. Fortunately, there are some common guidelines you can use to pull samples that meet various levels of confidence and error. The choice you make will likely come down to how many resources you have. Obviously, the larger the sample, the higher your confidence and lower your error.
B9: Stratified Sampling
B10: This Excel tool can suggest various sample sizes with different levels of confidence and error. All you need to do is enter is the size of the population; the tool will do the rest. Many online calculators can also do this. This is called simple random sampling, where each person or case in the population has an equal chance of getting selected. However, this Excel tool can also help suggest stratified samples. Stratified sampling involves dividing your population into smaller sub-groups (called strata), and pulling a sample from each strata. The strata are based on its members having something in common, like people from different counties, from different service providers, etc. Stratified sampling, also called proportional sampling, is recommended when the members from your population can easily be divided into similar groups, the size of those groups vary, and the groups they fall into are of interest to your study. For example, if you wanted to understand the experience of families who receive a service, like in-home parenting services, and there are many different providers that give that service, you might want to get a sample of families from each provider. If you did just a simple random sample, you might end up with a lot of people from the largest providers and few to none from the smaller providers. If that happens, you can't say anything about the experience of families from those small providers, which might be important information to know. Plus, those families are part of the overall population, and you want your sample to reflect the population as much as possible. Stratified sampling will help you achieve this.

Sheet 1 - Enter data
B2: The example below is designed to inform case review sampling when studying the fidelity and use of Evidenced-Based Practices (EBPs), such as those used by child welfare agencies in the context of the Family First Prevention Services Act (FFPSA). The example uses "EBP 1," "EBP 2," etc. as placeholders for the actual EBPs you might be using and it requires selecting up to five EBPs. In this example, up to 26 strata can be listed. If you would like to customize this calculator for your setting or need a sampling calculator designed for a different need, please reach out to Chapin Hall.
B4: Sample Size Calculator for A Simple Random or Stratified Sample
B5: Step 1 | C5: Enter the strata (e.g., counties, regions, providers, etc.) whose members you want to include in your sample.
C6: If you want a simple random sample instead of a stratified sample, then for strata just enter the population name (e.g., "All counties," "All providers," etc. or whatever population you are sampling)).
B8: Step 2 | C8: For each strata, select the EBP type(s) and enter the number of cases for that strata for each EBP.
C9: For example, if your want to select a sample of cases from each EBP provider (your strata), list the providers for your strata, select the EBP type(s), and enter the number of cases each provider
C10: served for each EBP. Or, if you want to select a sample of cases from each county (your strata), list the counties for your strata, select the EBP type(s), and enter the number of cases each county had
C11: for each EBP. The counts you enter represent the full population from which you will sample. See below for an example of sampling by providers, some of whom provide more than one type of EBP.
B13: Step 3 | C13: Go to the Results sheet to see your results.
C14: The calculator will suggest a sample size for each strata, for each type of EBP. It provides three options based on different levels of confidence and error.
C16: Strata (e.g., Counties, Providers, etc.) (Step 1) | D16: EBP Type | E16: # of cases served (Step 2) | G16: Summary of cases served, by EBP
C17: Provider Name | D17: EBP Type | E17: Served | F17: GT
C18: Provider ABC | D18: EBP_1 | E18: 100 | F18: Total | G18: ='pivot - do not edit'!C3 -> EBP_1 | H18: ='pivot - do not edit'!D3 -> EBP_2 | I18: ='pivot - do not edit'!E3 -> EBP_3 | J18: ='pivot - do not edit'!F3 -> EBP_4 | K18: ='pivot - do not edit'!G3 -> EBP_5 | L18: ='pivot - do not edit'!H3 -> Total
C19: Provider ABC | D19: EBP_2 | E19: 50 | F19: Total
C20: Provider DEF | D20: EBP_4 | E20: 50 | F20: Total | G20: ='pivot - do not edit'!C4 -> 105 | H20: ='pivot - do not edit'!D4 -> 60 | I20: ='pivot - do not edit'!E4 -> 15 | J20: ='pivot - do not edit'!F4 -> 300 | K20: ='pivot - do not edit'!G4 -> 20 | L20: ='pivot - do not edit'!H4 -> 500
C21: Provider GHI | D21: EBP_2 | E21: 10 | F21: Total
C22: Provider GHI | D22: EBP_4 | E22: 200 | F22: Total
C23: Provider GHI | D23: EBP_5 | E23: 20 | F23: Total
C24: Provider JKL | D24: EBP_1 | E24: 5 | F24: Total
C25: Provider MNO | D25: EBP_3 | E25: 15 | F25: Total
C26: Provider PQR | D26: EBP_4 | E26: 50 | F26: Total
F27: Total
F28: Total
F29: Total
F30: Total
F31: Total
F32: Total
F33: Total
F34: Total
F35: Total
F36: Total
F37: Total
F38: Total
F39: Total
F40: Total
F41: Total
F42: Total
F43: Total

Sheet 2 - Results
B2: Sample Size Calculator for EBP Case Reviews
B3: Sample Size Results | AD3: CI= Confidence Interval | AN3: Sampling parameters | AQ3: Critical values
B4: Below are three sample size options based on the number of cases served during the period which were entered in the previous sheet. | AM4: Distribution | AN4: 0.5 | AP4: 0.9 | AQ4: 1.645
B5: The three options reflect increasing levels of confidence that the sample you review will be representative of the full population of cases that were served. | AM5: CI_90 | AN5: 0.9 | AP5: 0.95 | AQ5: 1.96
B6: Generally, the larger the sample size, the more confidence you have that your review findings would match what you would get if you had reviewed every possible case. | AM6: CI_95 | AN6: 0.95 | AP6: 0.99 | AQ6: 2.575
K7: Less confidence | AD7: More confidence | AM7: MOE_10 | AN7: 0.1
AM8: MOE_5 | AN8: 0.05
C9: Number of cases served, by provider and EBP | K9: Option 1 | O9: see notes | R9: Option 2 | V9: see notes | Y9: Option 3 | AC9: see notes | AF9: Option 4 | AJ9: 60 | AL9: <--- Enter maximum number of cases agency can review
C10: from the previous sheet | K10: 90% CI, 10% Margin of error | R10: 95% CI, 10% Margin of error | Y10: 95% CI, 5% Margin of error | AF10: =AJ9/P13 -> 0.3870967742 | AG10: of the total suggested sample size from Option 1
D12: ='pivot - do not edit'!C3 -> EBP_1 | E12: ='pivot - do not edit'!D3 -> EBP_2 | F12: ='pivot - do not edit'!E3 -> EBP_3 | G12: ='pivot - do not edit'!F3 -> EBP_4 | H12: ='pivot - do not edit'!G3 -> EBP_5 | I12: ='pivot - do not edit'!H3 -> Total | K12: =D12 -> EBP_1 | L12: EBP_2 | M12: EBP_3 | N12: EBP_4 | O12: EBP_5 | P12: Total | R12: =K12 -> EBP_1 | S12: EBP_2 | T12: EBP_3 | U12: EBP_4 | V12: EBP_5 | W12: Total | Y12: =R12 -> EBP_1 | Z12: EBP_2 | AA12: EBP_3 | AB12: EBP_4 | AC12: EBP_5 | AD12: Total | AF12: =Y12 -> EBP_1 | AG12: =Z12 -> EBP_2 | AH12: =AA12 -> EBP_3 | AI12: =AB12 -> EBP_4 | AJ12: =AC12 -> EBP_5 | AK12: =AD12 -> Total
C13: =IF(ISBLANK('pivot - do not edit'!B4),"",'pivot - do not edit'!B4) -> Total | D13: =IF(ISBLANK('pivot - do not edit'!C4),"",'pivot - do not edit'!C4) -> 105 | E13: =IF(ISBLANK('pivot - do not edit'!D4),"",'pivot - do not edit'!D4) -> 60 | F13: =IF(ISBLANK('pivot - do not edit'!E4),"",'pivot - do not edit'!E4) -> 15 | G13: =IF(ISBLANK('pivot - do not edit'!F4),"",'pivot - do not edit'!F4) -> 300 | H13: =IF(ISBLANK('pivot - do not edit'!G4),"",'pivot - do not edit'!G4) -> 20 | I13: =IF(ISBLANK('pivot - do not edit'!H4),"",'pivot - do not edit'!H4) -> 500 | K13: =ROUND(cv_90*cv_90*(dist*(1-dist)/(moe_10*moe_10))/(1+(cv_90*cv_90*(dist*(1-dist)/(moe_10*moe_10))/D13)),0) -> 41 | L13: =ROUND(cv_90*cv_90*(dist*(1-dist)/(moe_10*moe_10))/(1+(cv_90*cv_90*(dist*(1-dist)/(moe_10*moe_10))/E13)),0) -> 32 | M13: =ROUND(cv_90*cv_90*(dist*(1-dist)/(moe_10*moe_10))/(1+(cv_90*cv_90*(dist*(1-dist)/(moe_10*moe_10))/F13)),0) -> 12 | N13: =ROUND(cv_90*cv_90*(dist*(1-dist)/(moe_10*moe_10))/(1+(cv_90*cv_90*(dist*(1-dist)/(moe_10*moe_10))/G13)),0) -> 55 | O13: =ROUND(cv_90*cv_90*(dist*(1-dist)/(moe_10*moe_10))/(1+(cv_90*cv_90*(dist*(1-dist)/(moe_10*moe_10))/H13)),0) -> 15 | P13: =SUM(K13:O13) -> 155 | R13: =ROUND(cv_95*cv_95*(dist*(1-dist)/(moe_10*moe_10))/(1+(cv_95*cv_95*(dist*(1-dist)/(moe_10*moe_10))/D13)),0) -> 50 | S13: =ROUND(cv_95*cv_95*(dist*(1-dist)/(moe_10*moe_10))/(1+(cv_95*cv_95*(dist*(1-dist)/(moe_10*moe_10))/E13)),0) -> 37 | T13: =ROUND(cv_95*cv_95*(dist*(1-dist)/(moe_10*moe_10))/(1+(cv_95*cv_95*(dist*(1-dist)/(moe_10*moe_10))/F13)),0) -> 13 | U13: =ROUND(cv_95*cv_95*(dist*(1-dist)/(moe_10*moe_10))/(1+(cv_95*cv_95*(dist*(1-dist)/(moe_10*moe_10))/G13)),0) -> 73 | V13: =ROUND(cv_95*cv_95*(dist*(1-dist)/(moe_10*moe_10))/(1+(cv_95*cv_95*(dist*(1-dist)/(moe_10*moe_10))/H13)),0) -> 17 | W13: =SUM(R13:V13) -> 190 | Y13: =ROUND(cv_95*cv_95*(dist*(1-dist)/(moe_5*moe_5))/(1+(cv_95*cv_95*(dist*(1-dist)/(moe_5*moe_5))/D13)),0) -> 82 | Z13: =ROUND(cv_95*cv_95*(dist*(1-dist)/(moe_5*moe_5))/(1+(cv_95*cv_95*(dist*(1-dist)/(moe_5*moe_5))/E13)),0) -> 52 | AA13: =ROUND(cv_95*cv_95*(dist*(1-dist)/(moe_5*moe_5))/(1+(cv_95*cv_95*(dist*(1-dist)/(moe_5*moe_5))/F13)),0) -> 14 | AB13: =ROUND(cv_95*cv_95*(dist*(1-dist)/(moe_5*moe_5))/(1+(cv_95*cv_95*(dist*(1-dist)/(moe_5*moe_5))/G13)),0) -> 168 | AC13: =ROUND(cv_95*cv_95*(dist*(1-dist)/(moe_5*moe_5))/(1+(cv_95*cv_95*(dist*(1-dist)/(moe_5*moe_5))/H13)),0) -> 19 | AD13: =SUM(Y13:AC13) -> 335 | AF13: =K13*$AF$10 -> 15.87096774 | AG13: =L13*$AF$10 -> 12.38709677 | AH13: 4.64516129 | AI13: 21.29032258 | AJ13: 5.806451613 | AK13: =SUM(AF13:AJ13) -> 60
C14: =IF(ISBLANK('pivot - do not edit'!B5),"",'pivot - do not edit'!B5) -> Provider ABC | D14: =IF(ISBLANK('pivot - do not edit'!C5),"",'pivot - do not edit'!C5) -> 100 | E14: =IF(ISBLANK('pivot - do not edit'!D5),"",'pivot - do not edit'!D5) -> 50 | F14: =IF(ISBLANK('pivot - do not edit'!E5),"",'pivot - do not edit'!E5) ->  | G14: =IF(ISBLANK('pivot - do not edit'!F5),"",'pivot - do not edit'!F5) ->  | H14: =IF(ISBLANK('pivot - do not edit'!G5),"",'pivot - do not edit'!G5) ->  | I14: =IF(ISBLANK('pivot - do not edit'!H5),"",'pivot - do not edit'!H5) -> 150 | K14: =IF($C14="","",IFERROR((D14/$D$13)*$K$13,"")) -> 39.04761905 | L14: =IF($C14="","",IFERROR((E14/$E$13)*$L$13,"")) -> 26.66666667 | M14: =IF($C14="","",IFERROR((F14/$F$13)*$M$13,"")) ->  | N14: =IF($C14="","",IFERROR((G14/$G$13)*$N$13,"")) ->  | O14: =IF($C14="","",IFERROR((H14/$H$13)*$O$13,"")) ->  | P14: =IF(C14 = "","",SUM(K14:O14)) -> 65.71428571 | R14: =IF($C14="","",IFERROR((D14/$D$13)*$R$13,"")) -> 47.61904762 | S14: =IF($C14="","",IFERROR((E14/$E$13)*$S$13,"")) -> 30.83333333 | T14: =IF($C14="","",IFERROR((F14/$F$13)*$T$13,"")) ->  | U14: =IF($C14="","",IFERROR((G14/$G$13)*$U$13,"")) ->  | V14: =IF($C14="","",IFERROR((H14/$H$13)*$V$13,"")) ->  | W14: =IF(C14 = "","",SUM(R14:V14)) -> 78.45238095 | Y14: =IF($C14="","",IFERROR((D14/$D$13)*$Y$13,"")) -> 78.0952381 | Z14: =IF($C14="","",IFERROR((E14/$E$13)*$Z$13,"")) -> 43.33333333 | AA14: =IF($C14="","",IFERROR((F14/$F$13)*$AA$13,"")) ->  | AB14: =IF($C14="","",IFERROR((G14/$G$13)*$AB$13,"")) ->  | AC14: =IF($C14="","",IFERROR((H14/$H$13)*$AC$13,"")) ->  | AD14: =IF(C14 = "","",SUM(Y14:AC14)) -> 121.4285714
C15: =IF(ISBLANK('pivot - do not edit'!B6),"",'pivot - do not edit'!B6) -> Provider DEF | D15: =IF(ISBLANK('pivot - do not edit'!C6),"",'pivot - do not edit'!C6) ->  | E15: =IF(ISBLANK('pivot - do not edit'!D6),"",'pivot - do not edit'!D6) ->  | F15: =IF(ISBLANK('pivot - do not edit'!E6),"",'pivot - do not edit'!E6) ->  | G15: =IF(ISBLANK('pivot - do not edit'!F6),"",'pivot - do not edit'!F6) -> 50 | H15: =IF(ISBLANK('pivot - do not edit'!G6),"",'pivot - do not edit'!G6) ->  | I15: =IF(ISBLANK('pivot - do not edit'!H6),"",'pivot - do not edit'!H6) -> 50 | K15: =IF($C15="","",IFERROR((D15/$D$13)*$K$13,"")) ->  | L15: =IF($C15="","",IFERROR((E15/$E$13)*$L$13,"")) ->  | M15: =IF($C15="","",IFERROR((F15/$F$13)*$M$13,"")) ->  | N15: =IF($C15="","",IFERROR((G15/$G$13)*$N$13,"")) -> 9.166666667 | O15: =IF($C15="","",IFERROR((H15/$H$13)*$O$13,"")) ->  | P15: =IF(C15 = "","",SUM(K15:O15)) -> 9.166666667 | R15: =IF($C15="","",IFERROR((D15/$D$13)*$R$13,"")) ->  | S15: =IF($C15="","",IFERROR((E15/$E$13)*$S$13,"")) ->  | T15: =IF($C15="","",IFERROR((F15/$F$13)*$T$13,"")) ->  | U15: =IF($C15="","",IFERROR((G15/$G$13)*$U$13,"")) -> 12.16666667 | V15: =IF($C15="","",IFERROR((H15/$H$13)*$V$13,"")) ->  | W15: =IF(C15 = "","",SUM(R15:V15)) -> 12.16666667 | Y15: =IF($C15="","",IFERROR((D15/$D$13)*$Y$13,"")) ->  | Z15: =IF($C15="","",IFERROR((E15/$E$13)*$Z$13,"")) ->  | AA15: =IF($C15="","",IFERROR((F15/$F$13)*$AA$13,"")) ->  | AB15: =IF($C15="","",IFERROR((G15/$G$13)*$AB$13,"")) -> 28 | AC15: =IF($C15="","",IFERROR((H15/$H$13)*$AC$13,"")) ->  | AD15: =IF(C15 = "","",SUM(Y15:AC15)) -> 28 | AF15: Consider this option if the agency does not have the capacity to review a statistically significant sample (i.e., Options 1 - 3). Enter in the yellow box the maximum number of cases the agency can review and the calculator will suggest some sample sizes for each EBP. This option will likely not produce a sample that is representative of the entire population, so caution is warranted when generalizing the results of your review to the full population.
C16: =IF(ISBLANK('pivot - do not edit'!B7),"",'pivot - do not edit'!B7) -> Provider GHI | D16: =IF(ISBLANK('pivot - do not edit'!C7),"",'pivot - do not edit'!C7) ->  | E16: =IF(ISBLANK('pivot - do not edit'!D7),"",'pivot - do not edit'!D7) -> 10 | F16: =IF(ISBLANK('pivot - do not edit'!E7),"",'pivot - do not edit'!E7) ->  | G16: =IF(ISBLANK('pivot - do not edit'!F7),"",'pivot - do not edit'!F7) -> 200 | H16: =IF(ISBLANK('pivot - do not edit'!G7),"",'pivot - do not edit'!G7) -> 20 | I16: =IF(ISBLANK('pivot - do not edit'!H7),"",'pivot - do not edit'!H7) -> 230 | L16: 5.333333333 | N16: 36.66666667 | O16: 15 | P16: 57 | S16: 6.166666667 | U16: 48.66666667 | V16: 17 | W16: 71.83333333 | Z16: 8.666666667 | AB16: 112 | AC16: 19 | AD16: 139.6666667
C17: =IF(ISBLANK('pivot - do not edit'!B8),"",'pivot - do not edit'!B8) -> Provider JKL | D17: =IF(ISBLANK('pivot - do not edit'!C8),"",'pivot - do not edit'!C8) -> 5 | E17: =IF(ISBLANK('pivot - do not edit'!D8),"",'pivot - do not edit'!D8) ->  | F17: =IF(ISBLANK('pivot - do not edit'!E8),"",'pivot - do not edit'!E8) ->  | G17: =IF(ISBLANK('pivot - do not edit'!F8),"",'pivot - do not edit'!F8) ->  | H17: =IF(ISBLANK('pivot - do not edit'!G8),"",'pivot - do not edit'!G8) ->  | I17: =IF(ISBLANK('pivot - do not edit'!H8),"",'pivot - do not edit'!H8) -> 5 | K17: 1.952380952 | P17: 1.952380952 | R17: 2.380952381 | W17: 2.380952381 | Y17: 3.904761905 | AD17: 3.904761905
C18: =IF(ISBLANK('pivot - do not edit'!B9),"",'pivot - do not edit'!B9) -> Provider MNO | D18: =IF(ISBLANK('pivot - do not edit'!C9),"",'pivot - do not edit'!C9) ->  | E18: =IF(ISBLANK('pivot - do not edit'!D9),"",'pivot - do not edit'!D9) ->  | F18: =IF(ISBLANK('pivot - do not edit'!E9),"",'pivot - do not edit'!E9) -> 15 | G18: =IF(ISBLANK('pivot - do not edit'!F9),"",'pivot - do not edit'!F9) ->  | H18: =IF(ISBLANK('pivot - do not edit'!G9),"",'pivot - do not edit'!G9) ->  | I18: =IF(ISBLANK('pivot - do not edit'!H9),"",'pivot - do not edit'!H9) -> 15 | M18: 12 | P18: 12 | T18: 13 | W18: 13 | AA18: 14 | AD18: 14
C19: =IF(ISBLANK('pivot - do not edit'!B10),"",'pivot - do not edit'!B10) -> Provider PQR | D19: =IF(ISBLANK('pivot - do not edit'!C10),"",'pivot - do not edit'!C10) ->  | E19: =IF(ISBLANK('pivot - do not edit'!D10),"",'pivot - do not edit'!D10) ->  | F19: =IF(ISBLANK('pivot - do not edit'!E10),"",'pivot - do not edit'!E10) ->  | G19: =IF(ISBLANK('pivot - do not edit'!F10),"",'pivot - do not edit'!F10) -> 50 | H19: =IF(ISBLANK('pivot - do not edit'!G10),"",'pivot - do not edit'!G10) ->  | I19: =IF(ISBLANK('pivot - do not edit'!H10),"",'pivot - do not edit'!H10) -> 50 | N19: 9.166666667 | P19: 9.166666667 | U19: 12.16666667 | W19: 12.16666667 | AB19: 28 | AD19: 28
C20: =IF(ISBLANK('pivot - do not edit'!B11),"",'pivot - do not edit'!B11) ->  | D20: =IF(ISBLANK('pivot - do not edit'!C11),"",'pivot - do not edit'!C11) ->  | E20: =IF(ISBLANK('pivot - do not edit'!D11),"",'pivot - do not edit'!D11) ->  | F20: =IF(ISBLANK('pivot - do not edit'!E11),"",'pivot - do not edit'!E11) ->  | G20: =IF(ISBLANK('pivot - do not edit'!F11),"",'pivot - do not edit'!F11) ->  | H20: =IF(ISBLANK('pivot - do not edit'!G11),"",'pivot - do not edit'!G11) ->  | I20: =IF(ISBLANK('pivot - do not edit'!H11),"",'pivot - do not edit'!H11) -> 
C21: =IF(ISBLANK('pivot - do not edit'!B12),"",'pivot - do not edit'!B12) ->  | D21: =IF(ISBLANK('pivot - do not edit'!C12),"",'pivot - do not edit'!C12) ->  | E21: =IF(ISBLANK('pivot - do not edit'!D12),"",'pivot - do not edit'!D12) ->  | F21: =IF(ISBLANK('pivot - do not edit'!E12),"",'pivot - do not edit'!E12) ->  | G21: =IF(ISBLANK('pivot - do not edit'!F12),"",'pivot - do not edit'!F12) ->  | H21: =IF(ISBLANK('pivot - do not edit'!G12),"",'pivot - do not edit'!G12) ->  | I21: =IF(ISBLANK('pivot - do not edit'!H12),"",'pivot - do not edit'!H12) -> 
C22: =IF(ISBLANK('pivot - do not edit'!B13),"",'pivot - do not edit'!B13) ->  | D22: =IF(ISBLANK('pivot - do not edit'!C13),"",'pivot - do not edit'!C13) ->  | E22: =IF(ISBLANK('pivot - do not edit'!D13),"",'pivot - do not edit'!D13) ->  | F22: =IF(ISBLANK('pivot - do not edit'!E13),"",'pivot - do not edit'!E13) ->  | G22: =IF(ISBLANK('pivot - do not edit'!F13),"",'pivot - do not edit'!F13) ->  | H22: =IF(ISBLANK('pivot - do not edit'!G13),"",'pivot - do not edit'!G13) ->  | I22: =IF(ISBLANK('pivot - do not edit'!H13),"",'pivot - do not edit'!H13) -> 
C23: =IF(ISBLANK('pivot - do not edit'!B14),"",'pivot - do not edit'!B14) ->  | D23: =IF(ISBLANK('pivot - do not edit'!C14),"",'pivot - do not edit'!C14) ->  | E23: =IF(ISBLANK('pivot - do not edit'!D14),"",'pivot - do not edit'!D14) ->  | F23: =IF(ISBLANK('pivot - do not edit'!E14),"",'pivot - do not edit'!E14) ->  | G23: =IF(ISBLANK('pivot - do not edit'!F14),"",'pivot - do not edit'!F14) ->  | H23: =IF(ISBLANK('pivot - do not edit'!G14),"",'pivot - do not edit'!G14) ->  | I23: =IF(ISBLANK('pivot - do not edit'!H14),"",'pivot - do not edit'!H14) ->  | K23: =IF($C23="","",IFERROR((D23/$D$13)*$K$13,"")) -> 
C24: =IF(ISBLANK('pivot - do not edit'!B15),"",'pivot - do not edit'!B15) ->  | D24: =IF(ISBLANK('pivot - do not edit'!C15),"",'pivot - do not edit'!C15) ->  | E24: =IF(ISBLANK('pivot - do not edit'!D15),"",'pivot - do not edit'!D15) ->  | F24: =IF(ISBLANK('pivot - do not edit'!E15),"",'pivot - do not edit'!E15) ->  | G24: =IF(ISBLANK('pivot - do not edit'!F15),"",'pivot - do not edit'!F15) ->  | H24: =IF(ISBLANK('pivot - do not edit'!G15),"",'pivot - do not edit'!G15) ->  | I24: =IF(ISBLANK('pivot - do not edit'!H15),"",'pivot - do not edit'!H15) -> 
C25: =IF(ISBLANK('pivot - do not edit'!B16),"",'pivot - do not edit'!B16) ->  | D25: =IF(ISBLANK('pivot - do not edit'!C16),"",'pivot - do not edit'!C16) ->  | E25: =IF(ISBLANK('pivot - do not edit'!D16),"",'pivot - do not edit'!D16) ->  | F25: =IF(ISBLANK('pivot - do not edit'!E16),"",'pivot - do not edit'!E16) ->  | G25: =IF(ISBLANK('pivot - do not edit'!F16),"",'pivot - do not edit'!F16) ->  | H25: =IF(ISBLANK('pivot - do not edit'!G16),"",'pivot - do not edit'!G16) ->  | I25: =IF(ISBLANK('pivot - do not edit'!H16),"",'pivot - do not edit'!H16) -> 
C26: =IF(ISBLANK('pivot - do not edit'!B17),"",'pivot - do not edit'!B17) ->  | D26: =IF(ISBLANK('pivot - do not edit'!C17),"",'pivot - do not edit'!C17) ->  | E26: =IF(ISBLANK('pivot - do not edit'!D17),"",'pivot - do not edit'!D17) ->  | F26: =IF(ISBLANK('pivot - do not edit'!E17),"",'pivot - do not edit'!E17) ->  | G26: =IF(ISBLANK('pivot - do not edit'!F17),"",'pivot - do not edit'!F17) ->  | H26: =IF(ISBLANK('pivot - do not edit'!G17),"",'pivot - do not edit'!G17) ->  | I26: =IF(ISBLANK('pivot - do not edit'!H17),"",'pivot - do not edit'!H17) -> 
C27: =IF(ISBLANK('pivot - do not edit'!B18),"",'pivot - do not edit'!B18) ->  | D27: =IF(ISBLANK('pivot - do not edit'!C18),"",'pivot - do not edit'!C18) ->  | E27: =IF(ISBLANK('pivot - do not edit'!D18),"",'pivot - do not edit'!D18) ->  | F27: =IF(ISBLANK('pivot - do not edit'!E18),"",'pivot - do not edit'!E18) ->  | G27: =IF(ISBLANK('pivot - do not edit'!F18),"",'pivot - do not edit'!F18) ->  | H27: =IF(ISBLANK('pivot - do not edit'!G18),"",'pivot - do not edit'!G18) ->  | I27: =IF(ISBLANK('pivot - do not edit'!H18),"",'pivot - do not edit'!H18) -> 
C28: =IF(ISBLANK('pivot - do not edit'!B19),"",'pivot - do not edit'!B19) ->  | D28: =IF(ISBLANK('pivot - do not edit'!C19),"",'pivot - do not edit'!C19) ->  | E28: =IF(ISBLANK('pivot - do not edit'!D19),"",'pivot - do not edit'!D19) ->  | F28: =IF(ISBLANK('pivot - do not edit'!E19),"",'pivot - do not edit'!E19) ->  | G28: =IF(ISBLANK('pivot - do not edit'!F19),"",'pivot - do not edit'!F19) ->  | H28: =IF(ISBLANK('pivot - do not edit'!G19),"",'pivot - do not edit'!G19) ->  | I28: =IF(ISBLANK('pivot - do not edit'!H19),"",'pivot - do not edit'!H19) -> 
C29: =IF(ISBLANK('pivot - do not edit'!B20),"",'pivot - do not edit'!B20) ->  | D29: =IF(ISBLANK('pivot - do not edit'!C20),"",'pivot - do not edit'!C20) ->  | E29: =IF(ISBLANK('pivot - do not edit'!D20),"",'pivot - do not edit'!D20) ->  | F29: =IF(ISBLANK('pivot - do not edit'!E20),"",'pivot - do not edit'!E20) ->  | G29: =IF(ISBLANK('pivot - do not edit'!F20),"",'pivot - do not edit'!F20) ->  | H29: =IF(ISBLANK('pivot - do not edit'!G20),"",'pivot - do not edit'!G20) ->  | I29: =IF(ISBLANK('pivot - do not edit'!H20),"",'pivot - do not edit'!H20) ->  | AF29: see notes
C30: =IF(ISBLANK('pivot - do not edit'!B21),"",'pivot - do not edit'!B21) ->  | D30: =IF(ISBLANK('pivot - do not edit'!C21),"",'pivot - do not edit'!C21) ->  | E30: =IF(ISBLANK('pivot - do not edit'!D21),"",'pivot - do not edit'!D21) ->  | F30: =IF(ISBLANK('pivot - do not edit'!E21),"",'pivot - do not edit'!E21) ->  | G30: =IF(ISBLANK('pivot - do not edit'!F21),"",'pivot - do not edit'!F21) ->  | H30: =IF(ISBLANK('pivot - do not edit'!G21),"",'pivot - do not edit'!G21) ->  | I30: =IF(ISBLANK('pivot - do not edit'!H21),"",'pivot - do not edit'!H21) -> 
C31: =IF(ISBLANK('pivot - do not edit'!B22),"",'pivot - do not edit'!B22) ->  | D31: =IF(ISBLANK('pivot - do not edit'!C22),"",'pivot - do not edit'!C22) ->  | E31: =IF(ISBLANK('pivot - do not edit'!D22),"",'pivot - do not edit'!D22) ->  | F31: =IF(ISBLANK('pivot - do not edit'!E22),"",'pivot - do not edit'!E22) ->  | G31: =IF(ISBLANK('pivot - do not edit'!F22),"",'pivot - do not edit'!F22) ->  | H31: =IF(ISBLANK('pivot - do not edit'!G22),"",'pivot - do not edit'!G22) ->  | I31: =IF(ISBLANK('pivot - do not edit'!H22),"",'pivot - do not edit'!H22) -> 
C32: =IF(ISBLANK('pivot - do not edit'!B23),"",'pivot - do not edit'!B23) ->  | D32: =IF(ISBLANK('pivot - do not edit'!C23),"",'pivot - do not edit'!C23) ->  | E32: =IF(ISBLANK('pivot - do not edit'!D23),"",'pivot - do not edit'!D23) ->  | F32: =IF(ISBLANK('pivot - do not edit'!E23),"",'pivot - do not edit'!E23) ->  | G32: =IF(ISBLANK('pivot - do not edit'!F23),"",'pivot - do not edit'!F23) ->  | H32: =IF(ISBLANK('pivot - do not edit'!G23),"",'pivot - do not edit'!G23) ->  | I32: =IF(ISBLANK('pivot - do not edit'!H23),"",'pivot - do not edit'!H23) -> 
C33: =IF(ISBLANK('pivot - do not edit'!B24),"",'pivot - do not edit'!B24) ->  | D33: =IF(ISBLANK('pivot - do not edit'!C24),"",'pivot - do not edit'!C24) ->  | E33: =IF(ISBLANK('pivot - do not edit'!D24),"",'pivot - do not edit'!D24) ->  | F33: =IF(ISBLANK('pivot - do not edit'!E24),"",'pivot - do not edit'!E24) ->  | G33: =IF(ISBLANK('pivot - do not edit'!F24),"",'pivot - do not edit'!F24) ->  | H33: =IF(ISBLANK('pivot - do not edit'!G24),"",'pivot - do not edit'!G24) ->  | I33: =IF(ISBLANK('pivot - do not edit'!H24),"",'pivot - do not edit'!H24) -> 
C34: =IF(ISBLANK('pivot - do not edit'!B25),"",'pivot - do not edit'!B25) ->  | D34: =IF(ISBLANK('pivot - do not edit'!C25),"",'pivot - do not edit'!C25) ->  | E34: =IF(ISBLANK('pivot - do not edit'!D25),"",'pivot - do not edit'!D25) ->  | F34: =IF(ISBLANK('pivot - do not edit'!E25),"",'pivot - do not edit'!E25) ->  | G34: =IF(ISBLANK('pivot - do not edit'!F25),"",'pivot - do not edit'!F25) ->  | H34: =IF(ISBLANK('pivot - do not edit'!G25),"",'pivot - do not edit'!G25) ->  | I34: =IF(ISBLANK('pivot - do not edit'!H25),"",'pivot - do not edit'!H25) -> 
C35: =IF(ISBLANK('pivot - do not edit'!B26),"",'pivot - do not edit'!B26) ->  | D35: =IF(ISBLANK('pivot - do not edit'!C26),"",'pivot - do not edit'!C26) ->  | E35: =IF(ISBLANK('pivot - do not edit'!D26),"",'pivot - do not edit'!D26) ->  | F35: =IF(ISBLANK('pivot - do not edit'!E26),"",'pivot - do not edit'!E26) ->  | G35: =IF(ISBLANK('pivot - do not edit'!F26),"",'pivot - do not edit'!F26) ->  | H35: =IF(ISBLANK('pivot - do not edit'!G26),"",'pivot - do not edit'!G26) ->  | I35: =IF(ISBLANK('pivot - do not edit'!H26),"",'pivot - do not edit'!H26) -> 
C36: =IF(ISBLANK('pivot - do not edit'!B27),"",'pivot - do not edit'!B27) ->  | D36: =IF(ISBLANK('pivot - do not edit'!C27),"",'pivot - do not edit'!C27) ->  | E36: =IF(ISBLANK('pivot - do not edit'!D27),"",'pivot - do not edit'!D27) ->  | F36: =IF(ISBLANK('pivot - do not edit'!E27),"",'pivot - do not edit'!E27) ->  | G36: =IF(ISBLANK('pivot - do not edit'!F27),"",'pivot - do not edit'!F27) ->  | H36: =IF(ISBLANK('pivot - do not edit'!G27),"",'pivot - do not edit'!G27) ->  | I36: =IF(ISBLANK('pivot - do not edit'!H27),"",'pivot - do not edit'!H27) -> 
C37: =IF(ISBLANK('pivot - do not edit'!B28),"",'pivot - do not edit'!B28) ->  | D37: =IF(ISBLANK('pivot - do not edit'!C28),"",'pivot - do not edit'!C28) ->  | E37: =IF(ISBLANK('pivot - do not edit'!D28),"",'pivot - do not edit'!D28) ->  | F37: =IF(ISBLANK('pivot - do not edit'!E28),"",'pivot - do not edit'!E28) ->  | G37: =IF(ISBLANK('pivot - do not edit'!F28),"",'pivot - do not edit'!F28) ->  | H37: =IF(ISBLANK('pivot - do not edit'!G28),"",'pivot - do not edit'!G28) ->  | I37: =IF(ISBLANK('pivot - do not edit'!H28),"",'pivot - do not edit'!H28) -> 
C38: =IF(ISBLANK('pivot - do not edit'!B29),"",'pivot - do not edit'!B29) ->  | D38: =IF(ISBLANK('pivot - do not edit'!C29),"",'pivot - do not edit'!C29) ->  | E38: =IF(ISBLANK('pivot - do not edit'!D29),"",'pivot - do not edit'!D29) ->  | F38: =IF(ISBLANK('pivot - do not edit'!E29),"",'pivot - do not edit'!E29) ->  | G38: =IF(ISBLANK('pivot - do not edit'!F29),"",'pivot - do not edit'!F29) ->  | H38: =IF(ISBLANK('pivot - do not edit'!G29),"",'pivot - do not edit'!G29) ->  | I38: =IF(ISBLANK('pivot - do not edit'!H29),"",'pivot - do not edit'!H29) -> 
C39: =IF(ISBLANK('pivot - do not edit'!B30),"",'pivot - do not edit'!B30) ->  | D39: =IF(ISBLANK('pivot - do not edit'!C30),"",'pivot - do not edit'!C30) ->  | E39: =IF(ISBLANK('pivot - do not edit'!D30),"",'pivot - do not edit'!D30) ->  | F39: =IF(ISBLANK('pivot - do not edit'!E30),"",'pivot - do not edit'!E30) ->  | G39: =IF(ISBLANK('pivot - do not edit'!F30),"",'pivot - do not edit'!F30) ->  | H39: =IF(ISBLANK('pivot - do not edit'!G30),"",'pivot - do not edit'!G30) ->  | I39: =IF(ISBLANK('pivot - do not edit'!H30),"",'pivot - do not edit'!H30) -> 
K42: Option 1 Explanation | R42: Option 2 Explanation | Y42: Option 3 Explanation | AF42: Option 4 Explanation
I44: Assumptions | K44: 50% response distribution | R44: 50% response distribution | Y44: 50% response distribution | AF44: NA response distribution
I45: The suggested sample size is based on three paramaters (response distribution, | K45: 90% confidence interval | R45: 95% confidence interval | Y45: 95% confidence interval | AF45: NA confidence interval
I46: confidence internal, and margin of error), plus the population size estimated earlier. | K46: 10% margin of error | R46: 10% margin of error | Y46: 5% margin of error | AF46: NA margin of error
I48: Interpretation | K48: The review is designed to tell us the extent to which the EBP is being implemented with fidelty. Let's call this the "fidelity amount." We don't know the true fidelity amount because we can't review every single case, so we will make a conservative guess that for any given EBP about 50% of the cases are being implemented with fidelity. This is the most conservative assumption. The bigger our sample, the more likely our case review will produce a fidelity amount that's close to the true one. How often we get a fidelity amount that's close to the true one (90% of the time? 95% of the time?) is our confidence, and how close we get to the true value (within 5% of the true value? 10%?) is our margin of error. A sample size based on a 90% confidence interval and 10% margin of error means that, if we were to repeat the case review many times (with a new sample each time), 90% of the time our case review will produce a fidelity amount that's within 10% of the true fidelity amount. In other words, if we assume that 50% of EBPs are implemented with fidelity (our best guess), and we went with the suggested sample size, about 90% of the time our review would find that between 40% to 60% of the cases were implemented with fidelity. This means that 10% of the time our review would suggest fidelity is much lower (< 40%) or much higher (> 60%) than it truly is. | R48: The review is designed to tell us the extent to which the EBP is being implemented with fidelty. Let's call this the "fidelity amount." We don't know the true fidelity amount because we can't review every single case, so we will make a conservative guess that for any given EBP about 50% of the cases are being implemented with fidelity. This is the most conservative assumption. The bigger our sample, the more likely our case review will produce a fidelity amount that's close to the true one. How often we get a fidelity amount that's close to the true one (90% of the time? 95% of the time?) is our confidence, and how close we get to the true value (within 5% of the true value? 10%?) is our margin of error. A sample size based on a 95% confidence interval and 10% margin of error means that, if we were to repeat the case review many times (with a new sample each time), 95% of the time our case review will produce a fidelity amount that's within 10% of the true fidelity amount. In other words, if we assume that 50% of EBPs are implemented with fidelity (our best guess), and we went with the suggested sample size, about 95% of the time our review would find that between 40% to 60% of the cases were implemented with fidelity. This means that 5% of the time our review would suggest fidelity is much lower (< 40%) or much higher (> 60%) than it truly is. | Y48: The review is designed to tell us the extent to which the EBP is being implemented with fidelty. Let's call this the "fidelity amount." We don't know the true fidelity amount because we can't review every single case, so we will make a conservative guess that for any given EBP about 50% of the cases are being implemented with fidelity. This is the most conservative assumption. The bigger our sample, the more likely our case review will produce a fidelity amount that's close to the true one. How often we get a fidelity amount that's close to the true one (90% of the time? 95% of the time?) is our confidence, and how close we get to the true value (within 5% of the true value? 10%?) is our margin of error. A sample size based on a 95% confidence interval and 5% margin of error means that, if we were to repeat the case review many times (with a new sample each time), 95% of the time our case review will produce a fidelity amount that's within 5% of the true fidelity amount. In other words, if we assume that 50% of EBPs are implemented with fidelity (our best guess), and we went with the suggested sample size, about 95% of the time our review would find that between 45% to 55% of the cases were implemented with fidelity. This means that 5% of the time our review would suggest fidelity is lower (< 45%) or higher (> 55%) than it truly is. | AF48: This option takes the number of cases the agency has the capacity to review (entered in the yellow box) and determines what percentage that number represents of the total suggested sample from Option 1. For example, if Option 1 suggested a total sample (across all EBPS) of 100, but the agency can only review 60 cases, the agency can review 60% (60 / 100) of what was recommended (for Option 1). The calculator then takes 60% (using this example) of the samples Option 1 recommended for each EBP to calculate the suggested samples.

Sheet pivot - do not edit
B1: Provider Pivot Table (populates the population table in 2 - Results)
B2: Sum of Served | C2: Column Labels | J2: EBPs
B3: Row Labels | C3: EBP_1 | D3: EBP_2 | E3: EBP_3 | F3: EBP_4 | G3: EBP_5 | H3: Total | J3: EBP_1
B4: Total | C4: 105 | D4: 60 | E4: 15 | F4: 300 | G4: 20 | H4: 500 | J4: EBP_2
B5: Provider ABC | C5: 100 | D5: 50 | H5: 150 | J5: EBP_3
B6: Provider DEF | F6: 50 | H6: 50 | J6: EBP_4
B7: Provider GHI | D7: 10 | F7: 200 | G7: 20 | H7: 230 | J7: EBP_5
B8: Provider JKL | C8: 5 | H8: 5
B9: Provider MNO | E9: 15 | H9: 15
B10: Provider PQR | F10: 50 | H10: 50
